[Event "Titled Tuesday Blitz April 4 Early 2023"]
[White "Castellanos Villela, Alejandro"]
[Black "Chandreyee, Hajra"]
[WhiteFideId "3446379"]
[BlackFideId "5056535"]
[WhiteElo "2103"]
[BlackElo "1725"]
[Result "1/2-1/2"]
[Round "09"]
[TimeControl "180+2"]
[Date "2023.04.04"]
[WhiteClock "0:00:07"]
[BlackClock "0:00:15"]

1. d4 {[%clk 0:03:00]}  e6 {[%clk 0:02:58]} 2. c4 {[%clk 0:03:00]}  f5 {[%clk 0:02:58]} 3. Nc3 {[%clk 0:03:00]}  Nf6 {[%clk 0:02:58]} 4. Nf3 {[%clk 0:02:59]}  Be7 {[%clk 0:02:57]} 5. g3 {[%clk 0:02:59]}  O-O {[%clk 0:02:57]} 6. Bg2 {[%clk 0:02:57]}  Ne4 {[%clk 0:02:57]} 7. O-O {[%clk 0:02:56]}  d6 {[%clk 0:02:53]} 8. Qc2 {[%clk 0:02:53]}  Nxc3 {[%clk 0:02:53]} 9. Qxc3 {[%clk 0:02:53]}  a5 {[%clk 0:02:51]} 10. b3 {[%clk 0:02:47]}  Nc6 {[%clk 0:02:50]} 11. Bb2 {[%clk 0:02:45]}  Bf6 {[%clk 0:02:49]} 12. Rfd1 {[%clk 0:02:44]}  Qe8 {[%clk 0:02:48]} 13. Qd2 {[%clk 0:02:36]}  e5 {[%clk 0:02:46]} 14. dxe5 {[%clk 0:02:33]}  dxe5 {[%clk 0:02:46]} 15. e3 {[%clk 0:02:24]}  e4 {[%clk 0:02:44]} 16. Nd4 {[%clk 0:02:23]}  Ne5 {[%clk 0:02:40]} 17. Nb5 {[%clk 0:02:18]}  Qf7 {[%clk 0:02:37]} 18. Qd5 {[%clk 0:02:14]}  c6 {[%clk 0:02:06]} 19. Qxf7+ {[%clk 0:02:12]}  Rxf7 {[%clk 0:02:06]} 20. Nd6 {[%clk 0:02:09]}  Rf8 {[%clk 0:02:02]} 21. Rd2 {[%clk 0:02:05]}  Nd3 {[%clk 0:02:00]} 22. Bxf6 {[%clk 0:02:03]}  Rxf6 {[%clk 0:02:00]} 23. Bxe4 {[%clk 0:01:57]}  fxe4 {[%clk 0:01:31]} 24. Nxe4 {[%clk 0:01:58]}  Re6 {[%clk 0:01:31]} 25. Ng5 {[%clk 0:01:58]}  Rd6 {[%clk 0:01:18]} 26. Rad1 {[%clk 0:01:52]}  h6 {[%clk 0:01:16]} 27. Ne4 {[%clk 0:01:37]}  Re6 {[%clk 0:01:16]} 28. f3 {[%clk 0:01:32]}  Ne5 {[%clk 0:01:09]} 29. Rd8+ {[%clk 0:01:29]}  Kh7 {[%clk 0:01:09]} 30. Nd6 {[%clk 0:01:22]}  Nxf3+ {[%clk 0:00:56]} 31. Kf2 {[%clk 0:01:21]}  Ng5 {[%clk 0:00:50]} 32. Nxc8 {[%clk 0:01:19]}  Nf7 {[%clk 0:00:37]} 33. Rf8 {[%clk 0:00:55]}  Nd6 {[%clk 0:00:23]} 34. c5 {[%clk 0:00:40]}  Rxc8 {[%clk 0:00:21]} 35. Rxc8 {[%clk 0:00:34]}  Nxc8 {[%clk 0:00:22]} 36. Rd7 {[%clk 0:00:34]}  Re7 {[%clk 0:00:21]} 37. Rd8 {[%clk 0:00:33]}  Na7 {[%clk 0:00:20]} 38. a4 {[%clk 0:00:30]}  Nb5 {[%clk 0:00:17]} 39. axb5 {[%clk 0:00:29]}  cxb5 {[%clk 0:00:17]} 40. Ra8 {[%clk 0:00:29]}  Rc7 {[%clk 0:00:17]} 41. Rxa5 {[%clk 0:00:26]}  Rxc5 {[%clk 0:00:18]} 42. Kf3 {[%clk 0:00:21]}  b6 {[%clk 0:00:18]} 43. Ra7 {[%clk 0:00:19]}  Rc3 {[%clk 0:00:18]} 44. Rb7 {[%clk 0:00:16]}  Rxb3 {[%clk 0:00:18]} 45. Rxb6 {[%clk 0:00:17]}  Rb2 {[%clk 0:00:18]} 46. h4 {[%clk 0:00:17]}  h5 {[%clk 0:00:17]} 47. e4 {[%clk 0:00:17]}  b4 {[%clk 0:00:16]} 48. Ke3 {[%clk 0:00:14]}  Rb3+ {[%clk 0:00:15]} 49. Kf4 {[%clk 0:00:13]}  Rb1 {[%clk 0:00:15]} 50. Kg5 {[%clk 0:00:11]}  Rb3 {[%clk 0:00:14]} 51. Kf4 {[%clk 0:00:09]}  Rb1 {[%clk 0:00:15]} 52. e5 {[%clk 0:00:09]}  b3 {[%clk 0:00:14]} 53. Kg5 {[%clk 0:00:09]}  Re1 {[%clk 0:00:13]} 54. Rxb3 {[%clk 0:00:07]}  Rxe5+ {[%clk 0:00:13]} 55. Kf4 {[%clk 0:00:08]}  Rc5 {[%clk 0:00:13]} 56. Re3 {[%clk 0:00:07]}  g6 {[%clk 0:00:13]} 57. Re4 {[%clk 0:00:07]}  Kh6 {[%clk 0:00:14]} 58. Ra4 {[%clk 0:00:06]}  Rb5 {[%clk 0:00:14]} 59. Ra8 {[%clk 0:00:06]}  Rf5+ {[%clk 0:00:14]} 60. Ke4 {[%clk 0:00:06]}  Rb5 {[%clk 0:00:14]} 61. Rh8+ {[%clk 0:00:06]}  Kg7 {[%clk 0:00:14]} 62. Rd8 {[%clk 0:00:07]}  Rb4+ {[%clk 0:00:14]} 63. Ke5 {[%clk 0:00:07]}  Rb5+ {[%clk 0:00:14]} 64. Kf4 {[%clk 0:00:07]}  Rb4+ {[%clk 0:00:14]} 65. Kf3 {[%clk 0:00:06]}  Rb3+ {[%clk 0:00:15]} 66. Kg2 {[%clk 0:00:07]}  Rb2+ {[%clk 0:00:15]} 67. Kh3 {[%clk 0:00:07]}  Rc2 {[%clk 0:00:15]} 68. Rd7+ {[%clk 0:00:07]}  Kf6 {[%clk 0:00:16]} 69. Ra7 {[%clk 0:00:08]}  Kf5 {[%clk 0:00:16]} 70. Ra5+ {[%clk 0:00:09]}  Kf6 {[%clk 0:00:16]} 71. Ra6+ {[%clk 0:00:09]}  Kf5 {[%clk 0:00:17]} 72. Ra8 {[%clk 0:00:09]}  Kf6 {[%clk 0:00:17]} 73. Rf8+ {[%clk 0:00:08]}  Kg7 {[%clk 0:00:17]} 74. Rf4 {[%clk 0:00:09]}  Rb2 {[%clk 0:00:17]} 75. Ra4 {[%clk 0:00:09]}  Rc2 {[%clk 0:00:17]} 76. Rb4 {[%clk 0:00:09]}  Rd2 {[%clk 0:00:17]} 77. Rb7+ {[%clk 0:00:09]}  Kh6 {[%clk 0:00:16]} 78. Rf7 {[%clk 0:00:09]}  Rc2 {[%clk 0:00:16]} 79. Rf3 {[%clk 0:00:07]}  Rd2 {[%clk 0:00:16]} 80. Rf1 {[%clk 0:00:07]}  Rd6 {[%clk 0:00:15]} 1/2-1/2


[Site "https://www.chess.com"]

[Event "Titled Tuesday Blitz April 4 Early 2023"]
[White "Kubatko, Ivan"]
[Black "Omelja, Artem"]
[WhiteFideId "24111473"]
[BlackFideId "14119846"]
[WhiteElo "2285"]
[BlackElo "2404"]
[Result "1-0"]
[Round "09"]
[TimeControl "180+2"]
[Date "2023.04.04"]
[WhiteClock "0:00:06"]
[BlackClock "0:00:04"]

1. e4 {[%clk 0:03:00]}  c5 {[%clk 0:02:54]} 2. c3 {[%clk 0:03:00]}  d5 {[%clk 0:02:52]} 3. exd5 {[%clk 0:03:00]}  Qxd5 {[%clk 0:02:53]} 4. d4 {[%clk 0:03:01]}  Nf6 {[%clk 0:02:53]} 5. Nf3 {[%clk 0:03:01]}  Bg4 {[%clk 0:02:53]} 6. Be2 {[%clk 0:03:00]}  Nc6 {[%clk 0:02:52]} 7. h3 {[%clk 0:03:00]}  Bh5 {[%clk 0:02:52]} 8. O-O {[%clk 0:03:00]}  e6 {[%clk 0:02:52]} 9. a3 {[%clk 0:02:58]}  Be7 {[%clk 0:02:51]} 10. c4 {[%clk 0:02:57]}  Qd8 {[%clk 0:02:51]} 11. dxc5 {[%clk 0:02:57]}  Bxc5 {[%clk 0:02:48]} 12. b4 {[%clk 0:02:57]}  Bb6 {[%clk 0:02:38]} 13. Bb2 {[%clk 0:02:52]}  O-O {[%clk 0:02:36]} 14. Nc3 {[%clk 0:02:41]}  Bxf3 {[%clk 0:02:16]} 15. Bxf3 {[%clk 0:02:18]}  Bd4 {[%clk 0:02:14]} 16. Qb3 {[%clk 0:01:51]}  Qc7 {[%clk 0:02:06]} 17. Nb5 {[%clk 0:01:44]}  Qe5 {[%clk 0:01:59]} 18. Rfe1 {[%clk 0:01:15]}  Qf4 {[%clk 0:01:31]} 19. Bxd4 {[%clk 0:00:59]}  Nxd4 {[%clk 0:01:31]} 20. Nxd4 {[%clk 0:00:59]}  Qxd4 {[%clk 0:01:32]} 21. Bxb7 {[%clk 0:00:57]}  Rab8 {[%clk 0:01:32]} 22. Rad1 {[%clk 0:00:49]}  Qf4 {[%clk 0:01:27]} 23. Bf3 {[%clk 0:00:46]}  Rfc8 {[%clk 0:01:26]} 24. Rc1 {[%clk 0:00:35]}  e5 {[%clk 0:01:26]} 25. Qe3 {[%clk 0:00:31]}  Rxc4 {[%clk 0:01:09]} 26. Rxc4 {[%clk 0:00:30]}  Qxc4 {[%clk 0:01:09]} 27. Qxe5 {[%clk 0:00:30]}  Rc8 {[%clk 0:00:57]} 28. g3 {[%clk 0:00:22]}  h6 {[%clk 0:00:56]} 29. Kg2 {[%clk 0:00:22]}  Qa2 {[%clk 0:00:35]} 30. Ra1 {[%clk 0:00:13]}  Qd2 {[%clk 0:00:34]} 31. Qe1 {[%clk 0:00:11]}  Qb2 {[%clk 0:00:32]} 32. Qb1 {[%clk 0:00:08]}  Qd2 {[%clk 0:00:32]} 33. Qe1 {[%clk 0:00:08]}  Qb2 {[%clk 0:00:32]} 34. Qb1 {[%clk 0:00:08]}  Qd2 {[%clk 0:00:19]} 35. a4 {[%clk 0:00:08]}  Rc2 {[%clk 0:00:12]} 36. Qe1 {[%clk 0:00:08]}  Qd4 {[%clk 0:00:11]} 37. Rd1 {[%clk 0:00:06]}  Qb2 {[%clk 0:00:11]} 38. Rd8+ {[%clk 0:00:06]}  Kh7 {[%clk 0:00:11]} 39. Be4+ {[%clk 0:00:06]}  Nxe4 {[%clk 0:00:10]} 40. Qxe4+ {[%clk 0:00:07]}  g6 {[%clk 0:00:11]} 41. Qf3 {[%clk 0:00:05]}  Kg7 {[%clk 0:00:10]} 42. Rd7 {[%clk 0:00:05]}  Qf6 {[%clk 0:00:08]} 43. Rxa7 {[%clk 0:00:04]}  Qe6 {[%clk 0:00:06]} 44. Ra5 {[%clk 0:00:02]}  Rc4 {[%clk 0:00:06]} 45. Rb5 {[%clk 0:00:03]}  Rd4 {[%clk 0:00:04]} 46. Qe3 {[%clk 0:00:02]}  Qd6 {[%clk 0:00:04]} 47. Qf3 {[%clk 0:00:02]}  Rd3 {[%clk 0:00:04]} 48. Qe4 {[%clk 0:00:02]}  Rd2 {[%clk 0:00:05]} 49. Qe5+ {[%clk 0:00:03]}  Qxe5 {[%clk 0:00:04]} 50. Rxe5 {[%clk 0:00:04]}  Rd4 {[%clk 0:00:05]} 51. Rb5 {[%clk 0:00:04]}  f5 {[%clk 0:00:06]} 52. a5 {[%clk 0:00:04]}  Kf6 {[%clk 0:00:07]} 53. a6 {[%clk 0:00:05]}  Rd6 {[%clk 0:00:06]} 54. Ra5 {[%clk 0:00:05]}  f4 {[%clk 0:00:05]} 55. a7 {[%clk 0:00:05]}  fxg3 {[%clk 0:00:05]} 56. Kxg3 {[%clk 0:00:06]}  Rd3+ {[%clk 0:00:05]} 57. f3 {[%clk 0:00:06]}  h5 {[%clk 0:00:05]} 58. a8=Q {[%clk 0:00:06]}  h4+ {[%clk 0:00:06]} 59. Kf2 {[%clk 0:00:06]}  Rd2+ {[%clk 0:00:06]} 60. Ke3 {[%clk 0:00:06]}  Rg2 {[%clk 0:00:07]} 61. Qf8+ {[%clk 0:00:06]}  Ke6 {[%clk 0:00:05]} 62. Qg8+ {[%clk 0:00:06]}  Kf6 {[%clk 0:00:05]} 63. Qf8+ {[%clk 0:00:07]}  Ke6 {[%clk 0:00:05]} 64. Ra6+ {[%clk 0:00:06]}  Kd5 {[%clk 0:00:04]} 65. Qf7+ {[%clk 0:00:06]}  Ke5 {[%clk 0:00:03]} 66. Qf4+ {[%clk 0:00:06]}  Kd5 {[%clk 0:00:04]} 67. Qd4# {[%clk 0:00:06]} 1-0


[Site "https://www.chess.com"]

[Event "Titled Tuesday Blitz April 4 Early 2023"]
[White "Ordekalog"]
[Black "Hajiyev, Kanan"]
[BlackFideId "13404148"]
[WhiteElo "2546"]
[BlackElo "2103"]
[Result "1-0"]
[Round "09"]
[TimeControl "180+2"]
[Date "2023.04.04"]
[WhiteClock "0:00:44"]
[BlackClock "0:00:48"]

1. e4 {[%clk 0:02:57]}  c6 {[%clk 0:02:56]} 2. d4 {[%clk 0:02:56]}  d5 {[%clk 0:02:57]} 3. Nd2 {[%clk 0:02:55]}  a6 {[%clk 0:02:57]} 4. Bd3 {[%clk 0:02:53]}  dxe4 {[%clk 0:02:56]} 5. Nxe4 {[%clk 0:02:52]}  Bf5 {[%clk 0:02:56]} 6. Nf3 {[%clk 0:02:51]}  e6 {[%clk 0:02:57]} 7. O-O {[%clk 0:02:50]}  Nf6 {[%clk 0:02:57]} 8. Nxf6+ {[%clk 0:02:40]}  Qxf6 {[%clk 0:02:58]} 9. Bg5 {[%clk 0:02:39]}  Qg6 {[%clk 0:02:57]} 10. Bxf5 {[%clk 0:02:37]}  Qxf5 {[%clk 0:02:58]} 11. Re1 {[%clk 0:02:36]}  Bd6 {[%clk 0:02:54]} 12. c4 {[%clk 0:02:31]}  O-O {[%clk 0:02:48]} 13. c5 {[%clk 0:02:25]}  Bc7 {[%clk 0:02:44]} 14. Qb3 {[%clk 0:02:24]}  Ra7 {[%clk 0:02:41]} 15. Bh4 {[%clk 0:02:07]}  Nd7 {[%clk 0:02:36]} 16. Bg3 {[%clk 0:02:04]}  b5 {[%clk 0:02:17]} 17. cxb6 {[%clk 0:01:58]}  Bxb6 {[%clk 0:02:17]} 18. Ne5 {[%clk 0:01:50]}  Nxe5 {[%clk 0:01:57]} 19. Rxe5 {[%clk 0:01:49]}  Qg4 {[%clk 0:01:49]} 20. Qxb6 {[%clk 0:01:46]}  Rd7 {[%clk 0:01:41]} 21. Qxc6 {[%clk 0:01:38]}  Qxd4 {[%clk 0:01:39]} 22. Qc2 {[%clk 0:01:32]}  f6 {[%clk 0:01:35]} 23. Rxe6 {[%clk 0:01:27]}  Rfd8 {[%clk 0:01:33]} 24. Ree1 {[%clk 0:01:25]}  h5 {[%clk 0:01:31]} 25. h4 {[%clk 0:01:22]}  a5 {[%clk 0:01:28]} 26. Re4 {[%clk 0:01:20]}  Qb6 {[%clk 0:01:25]} 27. Rae1 {[%clk 0:01:18]}  Kf7 {[%clk 0:01:18]} 28. Qc4+ {[%clk 0:01:16]}  Kg6 {[%clk 0:01:17]} 29. Qc2 {[%clk 0:01:08]}  Kf7 {[%clk 0:01:13]} 30. R4e2 {[%clk 0:01:03]}  Rd3 {[%clk 0:01:12]} 31. Kh2 {[%clk 0:00:59]}  R8d7 {[%clk 0:01:07]} 32. Qc4+ {[%clk 0:00:53]}  Kg6 {[%clk 0:01:06]} 33. Re7 {[%clk 0:00:51]}  Rxe7 {[%clk 0:00:56]} 34. Rxe7 {[%clk 0:00:50]}  Qd4 {[%clk 0:00:50]} 35. Qf7+ {[%clk 0:00:48]}  Kf5 {[%clk 0:00:50]} 36. Qxh5+ {[%clk 0:00:47]}  g5 {[%clk 0:00:49]} 37. Qh7+ {[%clk 0:00:47]}  Kg4 {[%clk 0:00:48]} 38. Re4+ {[%clk 0:00:44]} 1-0


[Site "https://www.chess.com"]

[Event "Titled Tuesday Blitz April 4 Early 2023"]
[White "Budrewicz, Krzysztof"]
[Black "Manukian, Artak"]
[WhiteFideId "1127950"]
[BlackFideId "13301373"]
[WhiteElo "2230"]
[BlackElo "2130"]
[Result "1/2-1/2"]
[Round "09"]
[TimeControl "180+2"]
[Date "2023.04.04"]
[WhiteClock "0:00:15"]
[BlackClock "0:00:08"]

1. d4 {[%clk 0:03:00]}  d5 {[%clk 0:02:58]} 2. c4 {[%clk 0:03:00]}  dxc4 {[%clk 0:02:56]} 3. Nf3 {[%clk 0:03:00]}  Nf6 {[%clk 0:02:56]} 4. Nc3 {[%clk 0:02:59]}  a6 {[%clk 0:02:54]} 5. a4 {[%clk 0:02:57]}  Bf5 {[%clk 0:02:49]} 6. e3 {[%clk 0:02:54]}  Bd3 {[%clk 0:02:49]} 7. Bxd3 {[%clk 0:02:52]}  cxd3 {[%clk 0:02:50]} 8. Qxd3 {[%clk 0:02:52]}  e6 {[%clk 0:02:47]} 9. O-O {[%clk 0:02:52]}  c5 {[%clk 0:02:45]} 10. Rd1 {[%clk 0:02:50]}  Nc6 {[%clk 0:02:43]} 11. b3 {[%clk 0:02:41]}  cxd4 {[%clk 0:02:33]} 12. exd4 {[%clk 0:02:38]}  Bb4 {[%clk 0:02:27]} 13. Bg5 {[%clk 0:02:36]}  Rc8 {[%clk 0:02:11]} 14. d5 {[%clk 0:02:23]}  Bxc3 {[%clk 0:02:05]} 15. Qxc3 {[%clk 0:02:17]}  Ne7 {[%clk 0:02:05]} 16. Qb4 {[%clk 0:02:08]}  Nexd5 {[%clk 0:02:01]} 17. Qxb7 {[%clk 0:02:08]}  O-O {[%clk 0:01:58]} 18. Qxa6 {[%clk 0:02:07]}  h6 {[%clk 0:01:52]} 19. Bh4 {[%clk 0:02:03]}  Qc7 {[%clk 0:01:46]} 20. Bg3 {[%clk 0:02:00]}  Qc2 {[%clk 0:01:37]} 21. Qd3 {[%clk 0:01:59]}  Ne4 {[%clk 0:01:30]} 22. Qxc2 {[%clk 0:01:52]}  Rxc2 {[%clk 0:01:31]} 23. a5 {[%clk 0:01:51]}  Ra8 {[%clk 0:01:26]} 24. Rd4 {[%clk 0:01:47]}  Rxa5 {[%clk 0:01:18]} 25. Rda4 {[%clk 0:01:38]}  Rxa4 {[%clk 0:01:15]} 26. bxa4 {[%clk 0:01:38]}  Nb4 {[%clk 0:01:14]} 27. Be5 {[%clk 0:01:33]}  Nxf2 {[%clk 0:01:10]} 28. a5 {[%clk 0:01:28]}  Na6 {[%clk 0:01:05]} 29. Bd4 {[%clk 0:01:28]}  Nd3 {[%clk 0:00:59]} 30. Bb6 {[%clk 0:01:27]}  Kf8 {[%clk 0:00:52]} 31. Nd4 {[%clk 0:01:12]}  Rc1+ {[%clk 0:00:51]} 32. Rxc1 {[%clk 0:01:12]}  Nxc1 {[%clk 0:00:52]} 33. Kf2 {[%clk 0:01:11]}  Nd3+ {[%clk 0:00:50]} 34. Ke3 {[%clk 0:01:10]}  Ndb4 {[%clk 0:00:50]} 35. Nb5 {[%clk 0:01:02]}  Ke7 {[%clk 0:00:46]} 36. Kd4 {[%clk 0:01:02]}  Kd7 {[%clk 0:00:43]} 37. Kc4 {[%clk 0:01:02]}  Nd5 {[%clk 0:00:40]} 38. Bf2 {[%clk 0:00:55]}  Nf4 {[%clk 0:00:34]} 39. g3 {[%clk 0:00:54]}  Ng6 {[%clk 0:00:32]} 40. Nd4 {[%clk 0:00:51]}  Ne5+ {[%clk 0:00:28]} 41. Kb5 {[%clk 0:00:51]}  Nc7+ {[%clk 0:00:25]} 42. Ka4 {[%clk 0:00:46]}  g5 {[%clk 0:00:16]} 43. Nb3 {[%clk 0:00:44]}  Kc6 {[%clk 0:00:14]} 44. Bd4 {[%clk 0:00:38]}  Nd7 {[%clk 0:00:13]} 45. g4 {[%clk 0:00:35]}  e5 {[%clk 0:00:13]} 46. Bf2 {[%clk 0:00:34]}  Ne6 {[%clk 0:00:13]} 47. a6 {[%clk 0:00:33]}  f6 {[%clk 0:00:09]} 48. Ka5 {[%clk 0:00:32]}  Nc7 {[%clk 0:00:06]} 49. a7 {[%clk 0:00:30]}  Kb7 {[%clk 0:00:06]} 50. Nc5+ {[%clk 0:00:24]}  Nxc5 {[%clk 0:00:06]} 51. Bxc5 {[%clk 0:00:24]}  Nd5 {[%clk 0:00:06]} 52. Kb5 {[%clk 0:00:23]}  Nf4 {[%clk 0:00:03]} 53. Be3 {[%clk 0:00:20]}  Nd5 {[%clk 0:00:02]} 54. Bf2 {[%clk 0:00:19]}  e4 {[%clk 0:00:02]} 55. Kc5 {[%clk 0:00:18]}  e3 {[%clk 0:00:03]} 56. Be1 {[%clk 0:00:18]}  Nf4 {[%clk 0:00:03]} 57. Kd4 {[%clk 0:00:15]}  e2 {[%clk 0:00:03]} 58. Ke4 {[%clk 0:00:14]}  Kxa7 {[%clk 0:00:04]} 59. Kf5 {[%clk 0:00:15]}  Kb7 {[%clk 0:00:04]} 60. Kxf6 {[%clk 0:00:15]}  Nd3 {[%clk 0:00:04]} 61. Bd2 {[%clk 0:00:15]}  e1=Q {[%clk 0:00:05]} 62. Bxe1 {[%clk 0:00:15]}  Nxe1 {[%clk 0:00:06]} 63. Kg6 {[%clk 0:00:16]}  Nf3 {[%clk 0:00:07]} 64. Kxh6 {[%clk 0:00:15]}  Nxh2 {[%clk 0:00:07]} 65. Kxg5 {[%clk 0:00:15]}  Nxg4 {[%clk 0:00:08]} 1/2-1/2


[Site "https://www.chess.com"]

[Event "Titled Tuesday Blitz April 4 Early 2023"]
[White "Sreyas Payyappat"]
[Black "Topalov, Aleksandar"]
[WhiteFideId "46674969"]
[BlackFideId "925659"]
[WhiteElo "2083"]
[BlackElo "2151"]
[Result "0-1"]
[Round "09"]
[TimeControl "180+2"]
[Date "2023.04.04"]
[WhiteClock "0:00:01"]
[BlackClock "0:00:17"]

1. e4 {[%clk 0:03:00]}  e6 {[%clk 0:02:59]} 2. d4 {[%clk 0:03:01]}  d5 {[%clk 0:02:59]} 3. Nc3 {[%clk 0:03:01]}  Bb4 {[%clk 0:02:58]} 4. e5 {[%clk 0:03:01]}  Qd7 {[%clk 0:02:58]} 5. a3 {[%clk 0:03:01]}  Bxc3+ {[%clk 0:02:57]} 6. bxc3 {[%clk 0:03:02]}  b6 {[%clk 0:02:57]} 7. Qg4 {[%clk 0:03:00]}  f5 {[%clk 0:02:57]} 8. Qh5+ {[%clk 0:02:56]}  Qf7 {[%clk 0:02:56]} 9. Qh4 {[%clk 0:02:54]}  Ba6 {[%clk 0:02:55]} 10. Bxa6 {[%clk 0:02:53]}  Nxa6 {[%clk 0:02:54]} 11. Nf3 {[%clk 0:02:53]}  Ne7 {[%clk 0:02:46]} 12. Ng5 {[%clk 0:02:47]}  Qg6 {[%clk 0:02:45]} 13. g3 {[%clk 0:02:19]}  Nb8 {[%clk 0:02:42]} 14. Bd2 {[%clk 0:02:15]}  Nbc6 {[%clk 0:02:42]} 15. Rg1 {[%clk 0:02:10]}  O-O-O {[%clk 0:02:36]} 16. O-O-O {[%clk 0:02:02]}  h6 {[%clk 0:02:34]} 17. Nh3 {[%clk 0:02:01]}  Qe8 {[%clk 0:02:32]} 18. g4 {[%clk 0:01:56]}  g5 {[%clk 0:02:28]} 19. Qg3 {[%clk 0:01:53]}  f4 {[%clk 0:02:17]} 20. Qd3 {[%clk 0:01:51]}  Na5 {[%clk 0:02:17]} 21. Qa6+ {[%clk 0:01:45]}  Kb8 {[%clk 0:02:17]} 22. Kb2 {[%clk 0:01:34]}  Qa4 {[%clk 0:02:16]} 23. Kb1 {[%clk 0:01:27]}  Qxa3 {[%clk 0:02:09]} 24. f3 {[%clk 0:01:25]}  Rc8 {[%clk 0:02:03]} 25. Nf2 {[%clk 0:01:19]}  c5 {[%clk 0:02:00]} 26. Nd3 {[%clk 0:01:15]}  cxd4 {[%clk 0:01:31]} 27. cxd4 {[%clk 0:01:09]}  Rc4 {[%clk 0:01:10]} 28. Qb5 {[%clk 0:00:54]}  Ra4 {[%clk 0:00:59]} 29. Bc3 {[%clk 0:00:19]}  Qa2+ {[%clk 0:00:30]} 30. Kc1 {[%clk 0:00:19]}  Rc8 {[%clk 0:00:25]} 31. Nb4 {[%clk 0:00:01]}  Qc4 {[%clk 0:00:17]} 0-1


[Site "https://www.chess.com"]

[Event "Titled Tuesday Blitz April 4 Early 2023"]
[White "Weishaeutel, Moritz"]
[Black "Koridze, Lile"]
[WhiteFideId "12967300"]
[BlackFideId "13612514"]
[WhiteElo "2301"]
[BlackElo "2047"]
[Result "1-0"]
[Round "09"]
[TimeControl "180+2"]
[Date "2023.04.04"]
[WhiteClock "0:00:41"]
[BlackClock "0:00:15"]

1. e4 {[%clk 0:03:00]}  c5 {[%clk 0:02:59]} 2. b4 {[%clk 0:02:59]}  cxb4 {[%clk 0:02:55]} 3. a3 {[%clk 0:03:00]}  bxa3 {[%clk 0:02:55]} 4. d4 {[%clk 0:03:00]}  d5 {[%clk 0:02:43]} 5. exd5 {[%clk 0:02:55]}  Qxd5 {[%clk 0:02:40]} 6. Nxa3 {[%clk 0:02:52]}  a6 {[%clk 0:02:36]} 7. Nb5 {[%clk 0:02:50]}  Qe6+ {[%clk 0:01:28]} 8. Be2 {[%clk 0:02:37]}  Kd8 {[%clk 0:01:24]} 9. Bf4 {[%clk 0:02:23]}  Bd7 {[%clk 0:01:23]} 10. Nc7 {[%clk 0:02:20]}  Qf5 {[%clk 0:01:23]} 11. Nxa8 {[%clk 0:01:51]}  Qxf4 {[%clk 0:01:21]} 12. Nb6 {[%clk 0:01:52]}  Nc6 {[%clk 0:01:19]} 13. Nxd7 {[%clk 0:01:50]}  Kxd7 {[%clk 0:01:19]} 14. Nf3 {[%clk 0:01:50]}  e6 {[%clk 0:01:15]} 15. O-O {[%clk 0:01:48]}  Bd6 {[%clk 0:01:15]} 16. d5 {[%clk 0:01:44]}  exd5 {[%clk 0:01:10]} 17. Qxd5 {[%clk 0:01:45]}  Nge7 {[%clk 0:01:10]} 18. Qb3 {[%clk 0:01:43]}  Kc7 {[%clk 0:01:10]} 19. Rfb1 {[%clk 0:01:41]}  Nd8 {[%clk 0:01:03]} 20. Qb6+ {[%clk 0:01:38]}  Kc8 {[%clk 0:01:01]} 21. g3 {[%clk 0:01:33]}  Qf6 {[%clk 0:01:01]} 22. Bxa6 {[%clk 0:01:15]}  bxa6 {[%clk 0:00:59]} 23. Rxa6 {[%clk 0:01:16]}  Nec6 {[%clk 0:00:53]} 24. Nd2 {[%clk 0:00:52]}  Bc7 {[%clk 0:00:47]} 25. Qb5 {[%clk 0:00:49]}  Qd4 {[%clk 0:00:27]} 26. Nb3 {[%clk 0:00:44]}  Qb4 {[%clk 0:00:17]} 27. Ra8+ {[%clk 0:00:42]}  Bb8 {[%clk 0:00:16]} 28. Rxb8+ {[%clk 0:00:41]}  Nxb8 {[%clk 0:00:15]} 29. Qxb4 {[%clk 0:00:41]} 1-0


[Site "https://www.chess.com"]

[Event "Titled Tuesday Blitz April 4 Early 2023"]
[White "Vemparala, Nikash"]
[Black "Salman, Pavel"]
[WhiteFideId "30960967"]
[BlackFideId "24153753"]
[WhiteElo "2023"]
[BlackElo "2187"]
[Result "0-1"]
[Round "09"]
[TimeControl "180+2"]
[Date "2023.04.04"]
[WhiteClock "0:00:07"]
[BlackClock "0:01:05"]

1. e4 {[%clk 0:03:00]}  c5 {[%clk 0:02:58]} 2. Nf3 {[%clk 0:02:59]}  e6 {[%clk 0:02:59]} 3. g3 {[%clk 0:02:58]}  b6 {[%clk 0:02:59]} 4. Bg2 {[%clk 0:02:57]}  Bb7 {[%clk 0:02:59]} 5. d3 {[%clk 0:02:54]}  g6 {[%clk 0:02:59]} 6. O-O {[%clk 0:02:54]}  Bg7 {[%clk 0:02:59]} 7. c3 {[%clk 0:02:48]}  Ne7 {[%clk 0:02:59]} 8. Re1 {[%clk 0:02:45]}  O-O {[%clk 0:03:00]} 9. d4 {[%clk 0:02:45]}  cxd4 {[%clk 0:02:59]} 10. cxd4 {[%clk 0:02:46]}  d5 {[%clk 0:02:59]} 11. e5 {[%clk 0:02:42]}  Nbc6 {[%clk 0:02:59]} 12. Nc3 {[%clk 0:02:41]}  Rc8 {[%clk 0:03:00]} 13. h4 {[%clk 0:02:32]}  Nf5 {[%clk 0:02:58]} 14. Bg5 {[%clk 0:02:28]}  Qd7 {[%clk 0:02:57]} 15. g4 {[%clk 0:02:26]}  Nfe7 {[%clk 0:02:54]} 16. Bf6 {[%clk 0:02:21]}  Rfe8 {[%clk 0:02:43]} 17. Qd2 {[%clk 0:02:16]}  Bf8 {[%clk 0:02:39]} 18. h5 {[%clk 0:02:11]}  Na5 {[%clk 0:02:38]} 19. Qg5 {[%clk 0:01:56]}  Nc4 {[%clk 0:02:33]} 20. hxg6 {[%clk 0:01:47]}  fxg6 {[%clk 0:02:29]} 21. a4 {[%clk 0:01:17]}  a6 {[%clk 0:02:21]} 22. Rab1 {[%clk 0:01:08]}  Nxb2 {[%clk 0:02:19]} 23. Rxb2 {[%clk 0:01:08]}  Rxc3 {[%clk 0:02:20]} 24. Rxb6 {[%clk 0:01:07]}  Bc6 {[%clk 0:02:18]} 25. Qh4 {[%clk 0:01:03]}  a5 {[%clk 0:02:03]} 26. Ng5 {[%clk 0:00:57]}  Nc8 {[%clk 0:02:03]} 27. Rxc6 {[%clk 0:00:39]}  Rxc6 {[%clk 0:02:02]} 28. Re3 {[%clk 0:00:39]}  Nb6 {[%clk 0:01:51]} 29. Rg3 {[%clk 0:00:36]}  Nxa4 {[%clk 0:01:48]} 30. Rh3 {[%clk 0:00:36]}  Rc7 {[%clk 0:01:48]} 31. Qg3 {[%clk 0:00:23]}  h6 {[%clk 0:01:38]} 32. Nf3 {[%clk 0:00:20]}  Nc3 {[%clk 0:01:25]} 33. Kh2 {[%clk 0:00:10]}  Ne4 {[%clk 0:01:23]} 34. Qf4 {[%clk 0:00:09]}  Rc2 {[%clk 0:01:04]} 35. Rxh6 {[%clk 0:00:06]}  Bxh6 {[%clk 0:01:05]} 36. Qxh6 {[%clk 0:00:06]}  Qh7 {[%clk 0:01:05]} 37. Qxh7+ {[%clk 0:00:07]}  Kxh7 {[%clk 0:01:06]} 38. Ng5+ {[%clk 0:00:07]}  Nxg5 {[%clk 0:01:06]} 39. Bxg5 {[%clk 0:00:07]}  Rxf2 {[%clk 0:01:06]} 40. Be3 {[%clk 0:00:08]}  Re2 {[%clk 0:01:05]} 41. Bc1 {[%clk 0:00:07]}  Rc8 {[%clk 0:01:05]} 0-1


[Site "https://www.chess.com"]